Cogmind - Beta 16 @@@ ROGUE MODE // 2025.11.03 @ 16:48:45 Player: omewwes Result: Destroyed by P-70 Sage with Tesla Rifle Performance ------------- Evolutions (5) 2500 Regions Visited (12) 2400 Robots Destroyed (170) 850 Value Destroyed (5885) 5885 Prototype IDs (44) 880 Alien Tech Used (0) 0 Bonus (1245) 1245 TOTAL SCORE: 13760 Bonus ------- High Alert Combat Kills 645 Aligned with FarCom 300 Met Data Miner 300 Cogmind --------- Core Integrity 0/1000 Matter 278/300 Energy 177/300 System Corruption 26% Temperature Cool (0) Movement Hovering (62) Location -5/Factory Parts ------- > --- POWER (1) -------- Enhanced Nuclear Core > --- PROPULSION (6) --- Gyrokinetic Inverter Gyrokinetic Inverter Gyrokinetic Inverter > --- UTILITY (7) ------ Advanced Heat Sink Enhanced Optical Array Advanced Targeting Computer System Guard > --- WEAPON (3) ------- Heavy Pick Heavy Pick > --- INVENTORY (5) ---- Improved Transmission Jammer Hypervelocity Gauss Rifle KE Penetrator Heavy Proton Missile Launcher Peak State ------------ > --- POWER ------------ Light Neutrino Core > --- PROPULSION ------- Improved Treads Medium Treads Medium Treads Improved Carbon-fiber Leg Armored Leg Armored Leg > --- UTILITY ---------- Advanced Heat Sink High-capacity Storage Unit Enhanced Optical Array Long-range Terrain Scanner Transmission Jammer Experimental Power Shielding Trap Reconfigurator > --- WEAPON ----------- Gauss Rifle Flak Gun Flak Gun > --- INVENTORY -------- Angular Momentum Engine Fission Core Armored Leg Advanced Heat Sink Medium Storage Unit Compact Matter Pod Improved Signal Interpreter Advanced Terrain Scan Processor Targeting Computer Kinecellerator Transmission Jammer Improved Thermal Shield Advanced Force Field High-powered Tractor Beam Enhanced Autogun Gauss Rifle Mini Assault Cannon Mini Assault Cannon Magnetic Acceleration Cannon Heavy Rocket Launcher [Rating: 88] Favorites ----------- Power Improved Deuterium Engine Engine Improved Deuterium Engine Power Core Light Nuclear Core Propulsion Light Treads Treads Light Treads Leg Armored Leg Wheel Wheel Hover Unit Gyrokinetic Inverter Utility Small Storage Unit Device Transmission Jammer Storage Small Storage Unit Processor Advanced Visual Processing Unit Protection Experimental Power Shielding Weapon Gauss Rifle Energy Gun EM Pulse Gun Energy Cannon Advanced Beam Cannon Ballistic Gun Gauss Rifle Ballistic Cannon Advanced Assault Cannon Launcher Heavy Rocket Launcher Impact Weapon Hammer Piercing Weapon Heavy Pick Build | -11 -10 -10 -10 -9 -8 -7 -7 -7 -7 -6 -6 -5 ------- Run | Yrd Mat Min Exi Min Mat Fac Low Low Dat Pro Fac Fac Slots Evolved 10 | . . . . . 4 2 . . . . 2 2 Power . | . . . . . . . . . . . . . Propulsion 4 | . . . . . 1 2 . . . . 1 . Utility 5 | . . . . . 2 . . . . . 1 2 Weapon 1 | . . . . . 1 . . . . . . . Parts Attached 136 | 6 5 . 2 3 31 17 . 3 . . 23 46 Power 17 | 1 1 . . 1 4 3 . . . . 2 5 Engine 8 | 1 1 . . 1 3 1 . . . . 1 . Core 9 | . . . . . 1 2 . . . . 1 5 Reactor . | . . . . . . . . . . . . . Propulsion 38 | 2 . . . 2 8 8 . . . . 6 12 Treads 24 | 2 . . . . 8 8 . . . . 2 4 Leg 5 | . . . . . . . . . . . 4 1 Wheel 1 | . . . . . . . . . . . . 1 Hover 8 | . . . . 2 . . . . . . . 6 Flight . | . . . . . . . . . . . . . Utility 46 | 1 3 . 1 . 11 3 . 1 . . 9 17 Device 25 | . 1 . 1 . 6 2 . 1 . . 5 9 Storage 7 | 1 2 . . . . . . . . . 3 1 Processor 11 | . . . . . 4 1 . . . . 1 5 Hackware . | . . . . . . . . . . . . . Protection 3 | . . . . . 1 . . . . . . 2 Artifact . | . . . . . . . . . . . . . Weapon 35 | 2 1 . 1 . 8 3 . 2 . . 6 12 Energy Gun 3 | 2 . . 1 . . . . . . . . . Energy Cannon 3 | . 1 . . . 2 . . . . . . . Ballistic Gun 15 | . . . . . 2 3 . 1 . . 1 8 Ballistic Cannon 8 | . . . . . 3 . . . . . 4 1 Launcher 2 | . . . . . . . . 1 . . 1 . Special Weapon . | . . . . . . . . . . . . . Impact Weapon 1 | . . . . . 1 . . . . . . . Slashing Weapon . | . . . . . . . . . . . . . Piercing Weapon 3 | . . . . . . . . . . . . 3 Special Melee Weapon . | . . . . . . . . . . . . . Unidentified Prototypes 12 | . . . 2 . 2 . . 1 . . 1 6 Corrupted Parts 2 | . . . . . 1 . . . . . . 1 System Corruption 16 | . . . . . 5 . . . . . . 11 Parts Lost 53 | . . 2 . . 5 7 . 1 . . 5 33 Power 5 | . . . . . 1 2 . . . . 1 1 Propulsion 23 | . . . . . 3 2 . 1 . . 4 13 Utility 11 | . . 1 . . 1 . . . . . . 9 Weapon 14 | . . 1 . . . 3 . . . . . 10 Highest Loss Streak 16 | . . 2 . . 4 3 . 1 . . 3 16 To Critical Strikes 2 | . . . . . . . . . . . . 2 Average Backups 8 | . 2 5 5 5 7 7 7 7 8 8 9 12 Power . | . . 1 . . . . 1 1 1 1 1 1 Propulsion . | . . . . . . 1 . . . . . . Utility 5 | . . 3 3 5 5 4 5 5 6 6 6 6 Weapon 1 | . 1 1 . . 1 . 1 1 1 1 2 4 Tool/Special . | . . . . . . . . . . . . . Unused Backups 25 | . . . 2 . 3 4 1 1 . . 3 11 Power 3 | . . . . . . 1 . . . . 2 . Propulsion . | . . . . . . . . . . . . . Utility 17 | . . . 1 . 2 3 1 1 . . . 9 Weapon 5 | . . . 1 . 1 . . . . . 1 2 Tool/Special . | . . . . . . . . . . . . . Average Slot Usage (%) 85 | . 97 37 1 31 83 98 100 95 88 92 78 82 Engine 4 | . 14 5 1 14 8 1 7 7 7 7 2 3 Core 1 | . . . . . . 4 . . . . 3 1 Treads 20 | . 28 10 . . 14 37 38 33 30 30 14 5 Leg 3 | . . . . . . . . . . . 4 13 Hover 1 | . . . . 12 2 . . . . . . 4 Device 13 | . 12 5 . . 11 8 15 14 15 15 18 18 Storage 6 | . 14 5 . 4 9 7 7 7 7 7 6 3 Processor 9 | . . . . . 12 13 7 7 7 7 6 11 Ballistic Gun 11 | . . . . . 1 14 23 22 19 23 16 5 Ballistic Cannon 5 | . . . . . 14 7 . . . . 2 7 Peak Build Rating 88 | 6 7 7 16 8 39 45 36 42 38 38 67 88 Average Rating 41 | 3 6 1 . 4 22 38 35 35 36 38 43 72 On Entrance 24 | . 6 7 . 2 8 39 36 35 38 38 38 67 Avg Prop Armor Cover (%) 9 | . . . . . 9 . . . . . 13 8 Naked Turns 219 | . . 53 166 . . . . . . . . . Heaviest Build 85 | 11 19 19 3 12 33 32 27 32 28 28 75 85 Greatest Support 110 | 40 40 40 3 14 60 110 108 108 88 88 108 79 Greatest Overweight (x) 2 | . . . . . 1 . . . . . 2 2 Average Overweight (x) . | . . . . . . . . . . . . . Largest Inventory Capacity 25 | 8 25 10 5 8 8 25 8 8 8 8 20 20 Average Capacity 9 | 6 8 6 5 6 8 8 8 8 8 8 10 15 Most Carried 20 | . 6 6 5 6 8 8 8 8 8 8 15 20 Average Carried 8 | . 2 5 4 5 7 7 7 7 8 8 9 12 Final Capacity 20 | 8 10 5 5 8 8 8 8 8 8 8 20 5 Final Carried 14 | . 6 5 5 6 8 8 7 8 8 8 14 4 Class Distribution -------------------- 46% | Scavenger-Skirmisher 27% | Skirmisher 22% | Mutant Dominant Class ---------------- Mutant | -10/Materials Mutant | -10/Mines Mutant | -10/Exiles Mutant | -9/Mines Mutant | -8/Materials Scavenger-Skirmisher | -7/Factory Scavenger-Skirmisher | -7/Lower Caves Scavenger-Skirmisher | -7/Lower Caves Scavenger-Skirmisher | -7/Data Miner Scavenger-Skirmisher | -6/Proximity Caves Skirmisher | -6/Factory Skirmisher | -5/Factory Resources | -11 -10 -10 -10 -9 -8 -7 -7 -7 -7 -6 -6 -5 ----------- Run | Yrd Mat Min Exi Min Mat Fac Low Low Dat Pro Fac Fac Matter Collected 6133 | 210 70 . 60 70 903 1148 402 176 . 48 935 2111 Remotely 566 | . . . . . . . . . . . 83 483 Salvage Created 6090 | . 109 . . . 1122 985 332 189 . . 1442 1911 Parts 266 | . 7 . . . 53 68 14 7 . . 43 74 Haulers Intercepted 9 | . . . . . 1 2 . 1 . . 2 3 Recyclers Shooed 9 | . . . . . 1 1 . . . . 4 3 Parts Field Recycled . | . . . . . . . . . . . . . Retrieved Matter . | . . . . . . . . . . . . . Parts Self-Destructed 19 | . . . . . . . 14 5 . . . . Prevented 2 | . . . . . . . 2 . . . . . Parts Restored . | . . . . . . . . . . . . . Kills | -11 -10 -10 -10 -9 -8 -7 -7 -7 -7 -6 -6 -5 ------- Run | Yrd Mat Min Exi Min Mat Fac Low Low Dat Pro Fac Fac Combat Hostiles Destroyed 113 | . 4 . . . 15 27 6 7 . . 24 30 Melee 16 | . . . . . 1 10 . . . . . 5 Guns 38 | . 3 . . . . 11 6 1 . . 11 6 Cannons 38 | . 1 . . . 13 6 . . . . 3 15 AOE 19 | . . . . . . . . 6 . . 10 3 Classes Destroyed 14 | . 2 . . . 8 2 1 . . . 1 . Worker 23 | . . . . . 5 5 . . . . 3 10 Builder 7 | . . . . . 2 1 . . . . 1 3 Tunneler 2 | . . . . . . 2 . . . . . . Hauler 9 | . . . . . 1 2 . 1 . . 2 3 Recycler 13 | . . . . . 5 1 . . . . 4 3 Watcher 3 | . . . . . 2 . . . . . 1 . Swarmer 26 | . 3 . . . 2 10 . 3 . . 8 . Grunt 51 | . 1 . . . 5 12 3 4 . . 10 16 Brawler 3 | . . . . . . . 1 . . . . 2 Duelist 2 | . . . . . . . . . . . 1 1 Sentry 11 | . . . . . 5 1 1 . . . 2 2 Specialist 2 | . . . . . 2 . . . . . . . Hunter 6 | . . . . . 1 2 1 . . . . 2 Programmer 12 | . . . . . . 2 . . . . 3 7 Best Kill Streak 12 | . 2 . . . 4 4 4 5 . . 10 12 Combat Bots Only 8 | . 2 . . . 3 4 4 4 . . 8 4 Max Kills in Single Turn 4 | . 1 . . . 2 1 1 2 . . 4 2 Gunslinging . | . . . . . . . . . . . . . Exploded 3 | . . . . . . . . 2 . . 3 2 Melee 1 | . . . . . 1 1 . . . . . 1 Uniques/NPCs Destroyed . | . . . . . . . . . . . . . Combat | -11 -10 -10 -10 -9 -8 -7 -7 -7 -7 -6 -6 -5 -------- Run | Yrd Mat Min Exi Min Mat Fac Low Low Dat Pro Fac Fac Hostile Shots Fired 874 | . 28 6 . . 71 239 42 34 . . 103 351 Missed 260 | . 2 . . . 16 64 25 15 . . 42 96 Hits 614 | . 26 6 . . 55 175 17 19 . . 61 255 Melee 12 | . . 2 . . . . . . . . . 10 Projectile 602 | . 26 4 . . 55 175 17 19 . . 61 245 AOE 7 | . . 2 . . . 1 . . . . . 4 Critical Strikes 37 | . . . . . 5 8 . . . . 1 23 Part Disruptions 1 | . . . . . . . . . . . . 1 Damage Taken 10915 | . 216 183 . . 833 2504 150 366 . . 837 5826 Core 1541 | . 24 111 . . 61 171 10 57 . . 101 1006 Absorbed by Shields . | . . . . . . . . . . . . . Redirected to Shielding 137 | . . . . . . . . . . . . 137 Core Remaining (%) 77 | 100 . . . 46 88 . . . . 66 88 . Volleys Fired 318 | . 12 . . . 50 68 16 16 . 5 49 102 Largest 3 | . 2 . . . 3 3 3 3 . 3 3 3 Hottest 148 | . 100 . . . 148 108 76 81 . 81 112 128 Shots Fired 851 | . 24 . . . 138 197 53 25 . 15 130 269 Gun 411 | . 12 . . . 9 113 53 17 . 15 100 92 Cannon 420 | . 12 . . . 129 84 . . . . 22 173 Launcher 20 | . . . . . . . . 8 . . 8 4 Special . | . . . . . . . . . . . . . Kinetic 779 | . . . . . 110 197 53 17 . 15 122 265 Thermal 40 | . 12 . . . 28 . . . . . . . Explosive 20 | . . . . . . . . 8 . . 8 4 Electromagnetic 12 | . 12 . . . . . . . . . . . Robot Hit Streak 20 | . 5 . . . 8 12 8 5 . . 13 20 Robot Miss Streak 16 | . 3 . . . 5 4 1 3 . 15 16 7 Penetration Max 1 | . . . . . . 1 1 1 . . . 1 Secondary Targets 5 | . . . . . . . 2 . . . 2 1 Max Gunslinging Chain 1 | . . . . . . . 1 . . . 1 1 Shots Hit Robots 538 | . 14 . . . 80 105 35 15 . . 90 199 Core Hits 372 | . 4 . . . 28 53 14 17 . . 81 175 Critical Kills 1 | . . . . . . 1 . . . . . . Critical Parts Destroyed 5 | . . . . . 1 1 1 1 . . . 1 Critical Strikes 28 | . . . . . 10 8 1 1 . . . 8 Destroy 5 | . . . . . . 2 1 1 . . . 1 Blast 21 | . . . . . 9 6 . . . . . 6 Smash 1 | . . . . . 1 . . . . . . . Impale 1 | . . . . . . . . . . . . 1 Melee Attacks 43 | . . . . . 18 . . . . . . 25 Impact 18 | . . . . . 18 . . . . . . . Slashing . | . . . . . . . . . . . . . Piercing 25 | . . . . . . . . . . . . 25 Sneak Attacks 2 | . . . . . 1 . . . . . . 1 Combat Hostiles 1 | . . . . . . . . . . . . 1 Follow-up Attacks 5 | . . . . . . . . . . . . 5 Damage Inflicted 16727 | . 205 . . . 1941 2257 524 1032 . . 4140 6628 Guns 5368 | . 81 . . . 64 1273 524 242 . . 1516 1668 Cannons 6311 | . 124 . . . 1643 928 . . . . 436 3180 Explosions 4007 | . . . . . . . . 790 . . 2188 1029 Melee 805 | . . . . . 234 . . . . . . 571 Ramming 236 | . . . . . . 56 . . . . . 180 Kinetic 11130 | . . . . . 1363 2201 524 242 . . 1952 4848 Thermal 1708 | . 124 . . . 344 . . . . . 976 264 Explosive 2767 | . . . . . . . . 790 . . 1212 765 Electromagnetic 81 | . 81 . . . . . . . . . . . Impact 234 | . . . . . 234 . . . . . . . Slashing . | . . . . . . . . . . . . . Piercing 571 | . . . . . . . . . . . . 571 Highest Corruption 26 | . . 6 6 6 10 4 4 4 4 4 . 26 Average Corruption 6 | . . 6 6 6 6 2 4 4 4 4 . 11 Corruption Purged 5 | . . . . . . . . . . . . 5 Corruption Blocked . | . . . . . . . . . . . . . Effects 163 | . . 1 5 2 37 18 21 12 5 9 . 53 Message Errors 35 | . . . 1 1 9 3 3 4 1 . . 13 Matter Fused 37 | . . 1 1 . 10 2 1 3 . 3 . 16 Heat Flow Errors 21 | . . . 1 . 5 1 1 . 1 3 . 9 Energy Discharges 17 | . . . . 1 . 3 4 1 . 2 . 6 Parts Rejected 3 | . . . . . 3 . . . . . . . Parts Fused 1 | . . . . . . 1 . . . . . . Data Loss (minor) 20 | . . . 1 . 6 4 2 1 2 . . 4 Data Loss (major) 10 | . . . . . 2 2 3 1 . 1 . 1 Misfires 8 | . . . . . 1 1 5 . . . . 1 Alerts 4 | . . . 1 . . . 2 . 1 . . . Misdirections 4 | . . . . . 1 . . . . . . 3 Weapon Failures 3 | . . . . . . 1 . 2 . . . . Overload Shots . | . . . . . . . . . . . . . Overflow Damage 390 | . . . . . 97 . . 38 . . 134 121 Projectiles 93 | . . . . . 46 . . . . . 1 46 Explosions 192 | . . . . . . . . 38 . . 133 21 Melee 105 | . . . . . 51 . . . . . . 54 Knockbacks 81 | . . . . . 14 15 . . . . 2 50 Impact 2 | . . . . . . 1 . . . . . 1 Kinetic 71 | . . . . . 14 14 . . . . 2 41 Secondary 8 | . . . . . . . . . . . . 8 Self-Inflicted Damage 346 | . . . . . . . . 67 . . . 279 Shots 6 | . . . . . . . . 2 . . . 4 Rammed 38 | . . . . . . 30 . . . . . 8 Targets Rammed 68 | . . . . . . 40 . . . . . 28 Kicked 20 | . . . . . . . . . . . . 20 Crushed 10 | . . . . . . 10 . . . . . . Highest Temperature 351 | . 351 . 210 . 309 128 84 8 94 233 32 220 Average Temperature 70 | . 150 . 110 . 89 12 18 7 54 106 17 56 Received Heat Transfer 2900 | . 12 . . . 324 792 51 135 . . 144 1442 Siege Activations . | . . . . . . . . . . . . . Martial Activations . | . . . . . . . . . . . . . Shielding Activations . | . . . . . . . . . . . . . Robots Disrupted . | . . . . . . . . . . . . . Combat Hostiles . | . . . . . . . . . . . . . Robots Corrupted 2 | . . . . . 1 . . . . . . 1 Combat Hostiles 2 | . . . . . 1 . . . . . . 1 Parts Fried 3 | . . . . . 2 . . . . . . 1 Impact Corruptions 7 | . . . . . 4 . . . . . . 3 Robots Melted . | . . . . . . . . . . . . . Combat Hostiles . | . . . . . . . . . . . . . Parts Melted 3 | . 2 . . . . . . . . . 1 . Heat Transferred 1713 | . 259 . . . 629 . . . . . 700 125 Parts Sabotaged . | . . . . . . . . . . . . . Parts Stolen . | . . . . . . . . . . . . . Parts Stripped . | . . . . . . . . . . . . . Power Chain Reactions . | . . . . . . . . . . . . . Alert | -11 -10 -10 -10 -9 -8 -7 -7 -7 -7 -6 -6 -5 ------- Run | Yrd Mat Min Exi Min Mat Fac Low Low Dat Pro Fac Fac Maximum Alert Level 3 | . . . . . 1 2 . . . . 3 3 Low Security (%) 31 | 100 100 100 . 100 86 18 . . . . 16 . Level 1 34 | . . . . . 13 77 . . . . 27 26 Level 2 28 | . . . . . . 4 . . . . 34 69 Level 3 6 | . . . . . . . . . . . 22 4 Level 4 . | . . . . . . . . . . . . . Level 5 . | . . . . . . . . . . . . . High Security . | . . . . . . . . . . . . . Max Security . | . . . . . . . . . . . . . Peak Influence 763 | . 73 30 . 5 300 463 . . . . 763 735 Initial 750 | . . 3 . . . 130 . . . . 750 367 Average 327 | . 32 5 . . 67 274 . . . . 474 502 Influence Increases 5076 | . 120 30 . 5 598 1021 145 170 . . 1669 1318 Destroy 0b10 Robot/C 2260 | . 80 . . . 300 540 120 140 . . 480 600 Destroy 0b10 Robot/NC 285 | . . . . . 75 55 . 5 . . 55 95 Destroy Leader 462 | . 20 . . . 76 114 10 10 . . 106 126 Trap Triggered on 0b10 30 | . . . . . . . . . . . . 30 Successful Hack 56 | . 19 . . 5 8 . . . . . . 24 Select Force Hacks 20 | . . . . . . 20 . . . . . . Disable Machine 480 | . . . . . 90 30 . . . . 195 165 Anti-Garrison Action 200 | . . . . . . 200 . . . . . . Destroy Structure 233 | . 1 . . . 34 17 . . . . 83 98 Advance Influence 750 | . . . . . . . . . . . 750 . Lose Combat Pursuer 300 | . . 30 . . 15 45 15 15 . . . 180 Influence Decreases 4351 | . 110 10 30 5 310 961 457 130 76 . 918 1344 Entered New Map 793 | . . 7 30 . . 158 130 8 76 . . 384 Time Decay 2635 | . 110 . . 5 300 583 327 112 . . 568 630 Search Patrol Dispatched 300 | . . . . . . . . . . . 300 . Lost Part 473 | . . 3 . . 10 70 . 10 . . 50 330 Purge Threat 150 | . . . . . . 150 . . . . . . Squads Dispatched 33 | . 3 . . . 3 11 . . . . 4 12 Investigation 7 | . 2 . . . . 4 . . . . . 1 Extermination 11 | . . . . . . 3 . . . . 3 5 Reinforcement 9 | . 1 . . . 3 . . . . . 1 4 Assault 2 | . . . . . . . . . . . . 2 Garrison 4 | . . . . . . 4 . . . . . . Intercept . | . . . . . . . . . . . . . Searches Triggered 3 | . . . . . . . . . . . 3 . Data Miner Redirects 2 | . . . . . . . . . . . . 2 Construction Impeded . | . . . . . . . . . . . . . Haulers Reinforced 3 | . . . . . . . . . . . . 3 Active Scanning Responses . | . . . . . . . . . . . . . Cargo Convoy Interrupts . | . . . . . . . . . . . . . Stealth | -11 -10 -10 -10 -9 -8 -7 -7 -7 -7 -6 -6 -5 --------- Run | Yrd Mat Min Exi Min Mat Fac Low Low Dat Pro Fac Fac Distress Signals 9 | . 2 . . . 2 1 . . . . . 4 Communications Jammed 67 | . . . . . . 1 . . . 3 4 59 Distress Signals 59 | . . . . . . . . . . . 1 58 Times Spotted 185 | . 4 14 . . 28 35 8 9 . 4 26 57 Peak Tracking Total 20 | . 3 20 . . 3 5 5 5 . 2 5 8 Tactical Retreats 12 | . . 3 . . 1 2 1 1 . . . 4 Traps | -11 -10 -10 -10 -9 -8 -7 -7 -7 -7 -6 -6 -5 ------- Run | Yrd Mat Min Exi Min Mat Fac Low Low Dat Pro Fac Fac Traps Triggered 13 | . 1 . . . 1 10 . . . . . 1 Indirectly . | . . . . . . . . . . . . . Trap Hack Attempts . | . . . . . . . . . . . . . Triggered . | . . . . . . . . . . . . . Disarmed . | . . . . . . . . . . . . . Reprogrammed . | . . . . . . . . . . . . . Reused 3 | . . . . . . . . . . . . 3 Traps Reconfigurated 6 | . . . . . . . . . . . . 6 Traps Extracted . | . . . . . . . . . . . . . Installed . | . . . . . . . . . . . . . Triggered 3 | . . . . . . . . . . . . 3 Machines | -11 -10 -10 -10 -9 -8 -7 -7 -7 -7 -6 -6 -5 ---------- Run | Yrd Mat Min Exi Min Mat Fac Low Low Dat Pro Fac Fac Machines Disabled 32 | . . . . . 6 2 . . . . 13 11 Max in Single Turn 5 | . . . . . 1 1 . . . . 4 5 Garrison Access 3 | . . . . . . 1 . . . . 1 1 Machines Repaired . | . . . . . . . . . . . . . Machines Dismantled . | . . . . . . . . . . . . . Machines Sabotaged . | . . . . . . . . . . . . . Overloaded Fab Kills . | . . . . . . . . . . . . . Hacking | -11 -10 -10 -10 -9 -8 -7 -7 -7 -7 -6 -6 -5 --------- Run | Yrd Mat Min Exi Min Mat Fac Low Low Dat Pro Fac Fac Machines Accessed 29 | . 3 . 4 1 3 6 . . 4 . 1 7 Terminals 11 | . 3 . . 1 2 2 . . . . . 3 Fabricators 3 | . . . . . . 1 . . . . . 2 Repair Stations . | . . . . . . . . . . . . . Recycling Units 4 | . . . . . 1 2 . . . . . 1 Scanalyzers . | . . . . . . . . . . . . . Garrison Access 3 | . . . . . . 1 . . . . 1 1 Total Hacks 89 | . 8 . 16 6 6 8 . . 30 . 1 14 Successful 64 | . 2 . 16 2 2 3 . . 30 . 1 8 Failed 25 | . 6 . . 4 4 5 . . . . . 6 Catastrophic 4 | . 2 . . . 1 . . . . . . 1 Database Lockouts . | . . . . . . . . . . . . . Manual 18 | . 1 . 1 5 6 5 . . . . . . Terminals 28 | . 8 . . 6 4 4 . . . . . 6 Fabricators 6 | . . . . . . 1 . . . . . 5 Repair Stations . | . . . . . . . . . . . . . Recycling Units 6 | . . . . . 2 2 . . . . . 2 Scanalyzers . | . . . . . . . . . . . . . Garrison Access 3 | . . . . . . 1 . . . . 1 1 Terminal Hacks 53 | . 1 . 16 1 1 1 . . 30 . . 3 Record 28 | . . . 15 . . . . . 11 . . 2 Part Schematic 12 | . . . . . . . . . 12 . . . Robot Schematic 4 | . . . . . . . . . 4 . . . Robot Analysis 1 | . . . . . . . . . . . . 1 Prototype ID Bank 3 | . . . . . . . . . 3 . . . Branch Access Points 2 | . 1 . . . 1 . . . . . . . Unreport Threat 1 | . . . . . . 1 . . . . . . Zone Layout 1 | . . . . 1 . . . . . . . . Proto ID Catalog 1 | . . . 1 . . . . . . . . . Fabricator Hacks 3 | . . . . . . . . . . . . 3 Load Schematic 2 | . . . . . . . . . . . . 2 Build 1 | . . . . . . . . . . . . 1 Repair Station Hacks . | . . . . . . . . . . . . . Recycling Unit Hacks 1 | . . . . . . . . . . . . 1 Retrieve Matter 1 | . . . . . . . . . . . . 1 Scanalyzer . | . . . . . . . . . . . . . Garrison Access Hacks 2 | . . . . . . . . . . . 1 1 Seal Access 2 | . . . . . . . . . . . 1 1 Unauthorized Hacks 5 | . 1 . . 1 1 2 . . . . . . Terminals 2 | . 1 . . 1 . . . . . . . . Track 2 | . 1 . . 1 . . . . . . . . Fabricators 1 | . . . . . . 1 . . . . . . Download 1 | . . . . . . 1 . . . . . . Repair Stations . | . . . . . . . . . . . . . Recycling Units 1 | . . . . . 1 . . . . . . . Reject 1 | . . . . . 1 . . . . . . . Scanalyzers . | . . . . . . . . . . . . . Garrison Access 1 | . . . . . . 1 . . . . . . Jam 1 | . . . . . . 1 . . . . . . Data Cores Recovered . | . . . . . . . . . . . . . Used . | . . . . . . . . . . . . . Hacking Detections 15 | . 3 . . 1 2 4 . . . . . 5 Full Trace Events 2 | . 1 . . . . . . . . . . 1 Feedback Events . | . . . . . . . . . . . . . Feedback Blocked . | . . . . . . . . . . . . . Robot Schematics Acquired 4 | . . . . . . . . . 4 . . . Robots Built . | . . . . . . . . . . . . . Authchips . | . . . . . . . . . . . . . Time . | . . . . . . . . . . . . . Total Robot Build Rating . | . . . . . . . . . . . . . Part Schematics Acquired 13 | . . . . . . 1 . . 12 . . . Parts Built 1 | . . . . . . . . . . . . 1 Authchips . | . . . . . . . . . . . . . Time 106 | . . . . . . . . . . . . 106 Total Part Build Rating 6 | . . . . . . . . . . . . 6 Part Studies Acquired . | . . . . . . . . . . . . . Parts Repaired . | . . . . . . . . . . . . . Time . | . . . . . . . . . . . . . Parts Recycled . | . . . . . . . . . . . . . Recycled Matter . | . . . . . . . . . . . . . Retrieved Matter 30 | . . . . . . . . . . . . 30 Retrieved Components . | . . . . . . . . . . . . . Parts Scanalyzed . | . . . . . . . . . . . . . Part Schematics Acquired . | . . . . . . . . . . . . . Parts Damaged . | . . . . . . . . . . . . . Bothacking | -11 -10 -10 -10 -9 -8 -7 -7 -7 -7 -6 -6 -5 ------------ Run | Yrd Mat Min Exi Min Mat Fac Low Low Dat Pro Fac Fac Used RIF Installer . | . . . . . . . . . . . . . Robots Hacked . | . . . . . . . . . . . . . Non-combat . | . . . . . . . . . . . . . Combat . | . . . . . . . . . . . . . Robot Hacks Applied . | . . . . . . . . . . . . . Relay Couplers Released 2 | . . . . . . . . . . . 2 . Machine Destruction 2 | . . . . . . . . . . . 2 . Fabnet Peak Effective % . | . . . . . . . . . . . . . Robots Rewired . | . . . . . . . . . . . . . Allies Hacked . | . . . . . . . . . . . . . Hacks Repelled . | . . . . . . . . . . . . . Allies | -11 -10 -10 -10 -9 -8 -7 -7 -7 -7 -6 -6 -5 -------- Run | Yrd Mat Min Exi Min Mat Fac Low Low Dat Pro Fac Fac Total Allies 2 | . . . . 2 . . . . . . . . Largest Group 2 | . . . . 2 . . . . . . . . Highest-Rated Group 41 | . . . . 41 . . . . . . . . Highest-Rated Ally 31 | . . . . 31 . . . . . . . . Total Orders . | . . . . . . . . . . . . . Ally Attacks . | . . . . . . . . . . . . . Total Damage . | . . . . . . . . . . . . . Kills . | . . . . . . . . . . . . . Allies Corrupted . | . . . . . . . . . . . . . Allies Melted . | . . . . . . . . . . . . . Intel | -11 -10 -10 -10 -9 -8 -7 -7 -7 -7 -6 -6 -5 ------- Run | Yrd Mat Min Exi Min Mat Fac Low Low Dat Pro Fac Fac Active Infowar (turns) 9360 | . 237 19 . . 1315 1809 902 593 154 430 1717 2184 Optics 8537 | . . . . . 748 1809 902 593 154 430 1717 2184 Sensors 256 | . 237 19 . . . . . . . . . . Terrain 1211 | . . . . . . . . . . . . 1211 Structural 567 | . . . . . 567 . . . . . . . Jamming 5556 | . . . . . . 327 902 593 154 430 1714 1436 Robot Analysis Total 1 | . . . . . . . . . . . . 1 Derelict Logs Recovered 7 | . . . . 1 . . 2 2 . 2 . . Drone Launches . | . . . . . . . . . . . . . Drone Recoveries . | . . . . . . . . . . . . . Exploration | -11 -10 -10 -10 -9 -8 -7 -7 -7 -7 -6 -6 -5 ------------- Run | Yrd Mat Min Exi Min Mat Fac Low Low Dat Pro Fac Fac Turns Passed 9953 | 71 270 73 185 147 1418 1809 902 593 154 430 1717 2184 Spaces Moved 5680 | 47 132 120 350 237 630 829 533 338 93 259 885 1227 Core 777 | 11 . 108 350 141 . . . . . . . 167 Treads 3581 | 36 132 12 . . 521 829 533 338 93 259 781 47 Legs 618 | . . . . . . . . . . . 104 514 Wheels . | . . . . . . . . . . . . . Hover 704 | . . . . 96 109 . . . . . . 499 Flight . | . . . . . . . . . . . . . Fastest Speed 50 | 50 160 50 50 50 56 156 160 160 160 160 120 50 Average Speed 138 | 134 160 61 50 52 160 163 160 160 160 160 164 116 Slowest Speed 260 | 160 160 160 50 60 240 170 160 160 160 160 260 190 Overloaded Moves . | . . . . . . . . . . . . . Propulsion Burnouts . | . . . . . . . . . . . . . Robots Hopped . | . . . . . . . . . . . . . Potential Cave-ins . | . . . . . . . . . . . . . Cave-ins Triggered . | . . . . . . . . . . . . . Exploration Rate (%) 46 | 5 30 42 63 71 51 27 68 56 78 58 23 29 Regions Visited 12 Branch Regions 7 Pre-discovered Areas 3 | . . . 1 . . . . . 1 1 . . Known Exits Taken 2 | . 1 . . . . . . . . 1 . . Unknown Exits Taken 10 | 1 . 1 1 1 1 1 1 1 1 . 1 . Scrap Searched 8 | . . . . 2 . . 4 1 . 1 . . Spaces Dug 19 | . . . . . . . . . . . 19 . Terrain Destroyed 282 | . . . . . 30 21 . 83 . 1 96 51 Melee . | . . . . . . . . . . . . . Projectile 77 | . . . . . 30 20 . 1 . 1 3 22 AOE 204 | . . . . . . . . 82 . . 93 29 Terrain Rammed . | . . . . . . . . . . . . . Walls Destroyed . | . . . . . . . . . . . . . Machines Disabled . | . . . . . . . . . . . . . Actions | -11 -10 -10 -10 -9 -8 -7 -7 -7 -7 -6 -6 -5 --------- Run | Yrd Mat Min Exi Min Mat Fac Low Low Dat Pro Fac Fac Total 7025 | 52 164 119 361 258 896 1119 556 367 98 265 1061 1709 Wait 568 | . 12 . . 13 125 129 7 1 . 2 64 215 Move 5668 | 46 131 119 349 236 629 828 532 337 92 258 884 1227 Hop . | . . . . . . . . . . . . . Pick Up 73 | . 2 . 4 2 16 11 . 3 . . 13 22 Fast Attach 95 | 6 2 . 2 2 16 18 . 2 3 . 13 31 Attach 41 | . . . 1 2 7 6 . . . . 4 21 Detach 22 | . 1 . . 1 2 2 . . . . 3 13 Swap 56 | . 4 . . 1 12 7 . 4 . . 15 13 Drop 81 | . . . 5 1 21 10 1 4 3 . 16 20 Fire 318 | . 12 . . . 50 68 16 16 . 5 49 102 Melee 35 | . . . . . 18 . . . . . . 17 Ram 7 | . . . . . . . . . . . . 7 Kick 20 | . . . . . . . . . . . . 20 Crush 41 | . . . . . . 40 . . . . . 1 Escape Stasis . | . . . . . . . . . . . . . Rewire . | . . . . . . . . . . . . . Trap . | . . . . . . . . . . . . . Miscellaneous . | . . . . . . . . . . . . . Route ------- -11/Scrapyard -10/Materials (discovered 2 exits: *Min x2) -10/Mines -10/Exiles -9/Mines -8/Materials -7/Factory (discovered 2 exits: *Fac / [*Low]) -7/Lower Caves -7/Lower Caves -7/Data Miner -6/Proximity Caves -6/Factory (discovered 2 exits: *Fac / Low) -5/Factory History --------- Turn | Location | Event 2 | -11/Scrapyard | Met Revision 17 4 | -11/Scrapyard | Discovered new exit (range 16) 72 | -11/Scrapyard | Entered Materials 320 | -10/Materials | Build established: Mutant 329 | -10/Materials | Identified exit to Mines 342 | -10/Materials | Entered Mines 343 | -10/Mines | Assembled infested the area 348 | -10/Mines | Assisted by a Guerilla fighting off Assembled 362 | -10/Mines | Released all parts (5) 376 | -10/Mines | Core integrity fell below 50% 400 | -10/Mines | Joined a pair of Derelicts in attacking an 0b10 outpost 413 | -10/Mines | Deemed a non-threat by the Exiles lab entrance 413 | -10/Mines | Discovered new exit (range 5) 415 | -10/Mines | Entered Exiles 428 | -10/Exiles | Met 8R-AWN 437 | -10/Exiles | Met EX-HEX 456 | -10/Exiles | Met EX-DEC 458 | -10/Exiles | Learned location of Zion (-6) 466 | -10/Exiles | Met EX-BIN 481 | -10/Exiles | Aligned with FarCom system 481 | -10/Exiles | Given EX-Vault access code 502 | -10/Exiles | Opened EX-Vault 503 | -10/Exiles | Found Prototype Energy Gun 503 | -10/Exiles | Identified AWS/Thermal 506 | -10/Exiles | Found Prototype Device 506 | -10/Exiles | Identified Trap Reconfigurator 521 | -10/Exiles | Warned to stay clear of 0b10 Research branches 595 | -10/Exiles | Discovered new exit (range 10) 600 | -10/Exiles | Left Exiles lab with Trap Reconfigurator 600 | -10/Exiles | Entered Mines 601 | -9/Mines | Learned Materials emergency access door positions 659 | -9/Mines | Found a hidden stash of uninstalled traps 687 | -9/Mines | Found DCF Scrap (11 items) 739 | -9/Mines | Discovered new exit (range 10) 747 | -9/Mines | Entered Materials 747 | -8/Materials | Evolved 4 slots: Propulsion x1, Utility x2, Weapon x1 1000 | -8/Materials | Lost 4 parts (1p2n1u) 1373 | -8/Materials | System corruption reached 10% 2051 | -8/Materials | Discovered new exit (range 13) 2057 | -8/Materials | Build established: Scavenger-Skirmisher 2165 | -8/Materials | Entered Factory 2165 | -7/Factory | Evolved 2 slots: Propulsion x2 2281 | -7/Factory | Garrison activated, responded to threat 3244 | -7/Factory | Lost 3 parts (1p1n1w) 3286 | -7/Factory | Discovered new exit (range 12) 3340 | -7/Factory | Identified exit to Factory 3534 | -7/Factory | Discovered new exit (range 7) 3609 | -7/Factory | Garrison activated, responded to threat 3974 | -7/Factory | Entered Lower Caves 4008 | -7/Lower Caves | Learned 4 Factory zone layouts 4661 | -7/Lower Caves | Discovered new exit (range 11) 4739 | -7/Lower Caves | Attracted the attention of an 0b10 checkpoint 4876 | -7/Lower Caves | Entered another Lower Caves area 5086 | -7/Lower Caves | Learned Factory terminal intel 5308 | -7/Lower Caves | Learned Factory machine intel 5382 | -7/Lower Caves | Discovered new exit (range 14) 5469 | -7/Lower Caves | Entered Data Miner 5469 | -7/Data Miner | Discovered new exit (range 6) 5493 | -7/Data Miner | Met Data Miner 5554 | -7/Data Miner | Learned location of Section 7 (-3) 5554 | -7/Data Miner | Acquired the access code to Warlord's prototype stash 5586 | -7/Data Miner | Received God Mode back door access code from Data Miner 5623 | -7/Data Miner | Entered Proximity Caves 5727 | -6/Proximity Caves | Spotter reported a threat 5766 | -6/Proximity Caves | Spotter reported a threat 5819 | -6/Proximity Caves | Spotter reported a threat 5922 | -6/Proximity Caves | Spotter reported a threat 5946 | -6/Proximity Caves | Spotter reported a threat 6029 | -6/Proximity Caves | Discovered exit to Factory (range 12) 6053 | -6/Proximity Caves | Entered Factory 6053 | -6/Factory | Evolved 2 slots: Propulsion x1, Utility x1 6054 | -6/Factory | Identified exit to Lower Caves 6056 | -6/Factory | Loaded intel: 341 machine locations 6057 | -6/Factory | Loaded intel: 26 terminal locations 6235 | -6/Factory | Lost 3 parts (3n) 6403 | -6/Factory | Search patrols dispatched 6500 | -6/Factory | Build established: Skirmisher 6753 | -6/Factory | Search patrols dispatched 7103 | -6/Factory | Search patrols dispatched 7544 | -6/Factory | Destroyed 8 combat bots 7761 | -6/Factory | Discovered new exit (range 5) 7770 | -6/Factory | Entered another Factory area 7770 | -5/Factory | Evolved 2 slots: Utility x2 8670 | -5/Factory | First assault squad dispatched 8717 | -5/Factory | Lost 4 parts (2n2w) 8838 | -5/Factory | System corruption reached 10% 9212 | -5/Factory | Incoming assault squad redirected 9241 | -5/Factory | Incoming assault squad redirected 9252 | -5/Factory | Core integrity fell below 50% 9278 | -5/Factory | Lost 16 parts (6n4u6w) 9501 | -5/Factory | Build established: Mutant 9688 | -5/Factory | Lost 3 parts (2u1w) 9811 | -5/Factory | Fabricated Adv. Hacking Suite? 9855 | -5/Factory | Lost 4 parts (1n3u) 9896 | -5/Factory | Core integrity fell below 20% 9954 | -5/Factory | Destroyed by P-70 Sage with Tesla Rifle Last Messages --------------- 09895_ U-05 Engineer lays Concrete. 09896_ Hvy. Pick follow-up attack on G-50 Soldier. 09897_ U-05 Engineer lays Concrete. 09900_ G-50 Soldier destroyed. 09902_ Terminal disabled. 09904_ U-05 Engineer lays Concrete. 09905_ System corrupted: Heat flow error (+235). 09908_ The unstable cave ceiling collapses. 09909_ Hvy. Pick follow-up attack on G-50 Soldier. 09919_ G-50 Soldier suffers critical hit (Impale). 09919_ Destroyed Lgt. Angular Momentum Engine. 09919_ G-50 Soldier destroyed. 09923_ System corrupted: Heat flow error (+123). 09924_ Acquired 123 matter. 09931_ Acquired Adv. Heat Sink. 09938_ Acquired 31 matter. 09940_ HQBAWH5J|XV4Z|BQFH:0USI>/OCUADZ5UM3